Cogmind - Beta 14 @@@ ROGUE MODE // 2025.05.04 @ 21:10:20 Player: LightKnight Result: System corrupted Performance ------------- Evolutions (4) 2000 Regions Visited (10) 2000 Robots Destroyed (89) 445 Value Destroyed (2991) 2991 Prototype IDs (35) 700 Alien Tech Used (0) 0 Bonus (288) 288 TOTAL SCORE: 8424 Bonus ------- Follower Combat Kills 238 Aligned with FarCom 300 Friendly Fire -250 Cogmind --------- Core Integrity 0/850 Matter 0/300 Energy 100/100 System Corruption 100% Temperature Cool (0) Movement Core (750) Ox14 Location -6/Waste Parts ------- > --- POWER (1) -------- (None) > --- PROPULSION (3) --- (None) > --- UTILITY (8) ------ Damper Plating (fused) > --- WEAPON (3) ------- (None) > --- INVENTORY (5) ---- Cooling System Improved Medium Armor Plating Firepult Precision Grenade Launcher Peak State ------------ > --- POWER ------------ Heavy Ion Engine > --- PROPULSION ------- Light Treads Armored Treads Advanced Treads > --- UTILITY ---------- Cryofiber Web Advanced Heat Sink Large Storage Unit Visual Processing Unit Improved Medium Armor Plating System Shield Authchip [R/Combat] System Guard > --- WEAPON ----------- Heavy Particle Gun Heavy Laser Plasma Rifle > --- INVENTORY -------- Light Nuclear Core Light Fission Core Improved Treads Cooling System Energy Well Matter Compressor Advanced Sensor Array Improved Medium Armor Plating Drone Bay Heavy Laser Heavy Laser Firepult Precision Grenade Launcher CPS Tube [Rating: 57] Favorites ----------- Power Heavy Ion Engine Engine Heavy Ion Engine Power Core Nuclear Core Propulsion Light Treads Treads Light Treads Leg Aluminum Leg Utility Damper Plating Device Heat Sink Storage Large Storage Unit Processor Visual Processing Unit Hackware System Shield Protection Damper Plating Weapon Heavy Laser Energy Gun Heavy Laser Energy Cannon Heavy Particle Cannon Ballistic Gun Assault Rifle Ballistic Cannon Flak Cannon Launcher EMP Blaster Build | -11 -10 -10 -10 -9 -8 -8 -8 -8 -6 -6 ------- Run | Yrd Mat Min Exi Min Mat Sto Rec Scr Fac Was Slots Evolved 8 | . . . . . 4 . . . 4 . Power . | . . . . . . . . . . . Propulsion 1 | . . . . . 1 . . . . . Utility 6 | . . . . . 2 . . . 4 . Weapon 1 | . . . . . 1 . . . . . Parts Attached 83 | . 16 7 3 . 19 11 1 3 14 9 Power 4 | . . 1 . . . 2 . . 1 . Engine 1 | . . . . . . 1 . . . . Core 3 | . . 1 . . . 1 . . 1 . Reactor . | . . . . . . . . . . . Propulsion 16 | . 4 2 2 . 2 2 . 1 3 . Treads 10 | . . . 2 . 2 2 . 1 3 . Leg 6 | . 4 2 . . . . . . . . Wheel . | . . . . . . . . . . . Hover . | . . . . . . . . . . . Flight . | . . . . . . . . . . . Utility 24 | . 3 . 1 . 9 . . 2 8 1 Device 11 | . 2 . . . 5 . . 1 3 . Storage 1 | . . . 1 . . . . . . . Processor 4 | . . . . . . . . . 4 . Hackware 3 | . . . . . 2 . . 1 . . Protection 5 | . 1 . . . 2 . . . 1 1 Artifact . | . . . . . . . . . . . Weapon 39 | . 9 4 . . 8 7 1 . 2 8 Energy Gun 19 | . 5 1 . . 4 6 1 . 2 . Energy Cannon 10 | . . 1 . . 1 . . . . 8 Ballistic Gun 1 | . 1 . . . . . . . . . Ballistic Cannon 1 | . . . . . 1 . . . . . Launcher 8 | . 3 2 . . 2 1 . . . . Special Weapon . | . . . . . . . . . . . Impact Weapon . | . . . . . . . . . . . Slashing Weapon . | . . . . . . . . . . . Piercing Weapon . | . . . . . . . . . . . Special Melee Weapon . | . . . . . . . . . . . Unidentified Prototypes 3 | . . . . . 1 2 . . . . Corrupted Parts 1 | . . . . . . . . 1 . . System Corruption 1 | . . . . . . . . 1 . . Parts Lost 16 | . . . . 1 3 4 . . 7 1 Power 1 | . . . . . . 1 . . . . Propulsion 5 | . . . . . . 1 . . 3 1 Utility 6 | . . . . 1 2 . . . 3 . Weapon 4 | . . . . . 1 2 . . 1 . Highest Loss Streak 4 | . . . . 1 1 2 . . 4 1 To Critical Strikes . | . . . . . . . . . . . Average Slot Usage (%) 26 | . 99 100 100 95 87 99 100 100 95 5 Engine 1 | . 14 5 . . . 1 9 9 5 . Treads 3 | . . . 5 28 24 27 27 27 19 . Leg 1 | . 27 28 22 . . . . . . . Device 3 | . 12 14 14 9 16 18 18 18 13 . Storage 2 | . 14 14 14 14 9 9 9 9 6 . Hackware 1 | . . . . . 1 9 9 9 11 . Protection 4 | . . . . . 1 . . . 4 5 Energy Gun 4 | . 18 14 14 14 20 26 27 27 19 . Peak Build Rating 57 | . 10 13 14 14 32 35 35 40 57 43 Average Rating 26 | . 9 11 13 13 25 32 34 36 53 26 On Entrance 22 | 6 6 10 12 14 13 31 34 35 39 43 Naked Turns 513 | . . . . . . . . . . 513 Heaviest Build 50 | 14 18 22 35 35 44 41 41 41 50 45 Greatest Support 65 | 20 20 20 40 40 60 63 63 63 65 40 Greatest Overweight (x) 14 | . 1 1 . . 1 . . . 1 14 Average Overweight (x) 3 | . . . . . . . . . . 10 Largest Inventory Capacity 15 | . 8 8 15 15 15 15 15 15 15 15 Average Capacity 6 | . 8 8 9 15 15 15 15 15 15 5 Most Carried 15 | . 8 8 9 10 15 15 15 15 15 15 Average Carried 6 | . 7 7 8 9 12 13 14 14 14 5 Final Capacity 15 | 8 8 8 15 15 15 15 15 15 15 5 Final Carried 15 | 6 8 8 9 10 15 15 15 15 15 5 Class Distribution -------------------- 85% | Mutant 9% | Skirmisher 4% | Gunner Dominant Class ---------------- Mutant | -10/Materials Mutant | -10/Mines Mutant | -10/Exiles Mutant | -9/Mines Skirmisher | -8/Materials Skirmisher | -8/Storage Skirmisher | -8/Recycling Gunner | -8/Scraptown Skirmisher | -6/Factory Mutant | -6/Waste Resources | -11 -10 -10 -10 -9 -8 -8 -8 -8 -6 -6 ----------- Run | Yrd Mat Min Exi Min Mat Sto Rec Scr Fac Was Matter Collected 1586 | 200 257 78 30 34 254 150 10 14 417 142 Remotely . | . . . . . . . . . . . Salvage Created 4839 | . 879 75 . . 742 649 109 . 746 1639 Parts 168 | . 42 4 . . 42 31 8 . 32 9 Haulers Intercepted 1 | . . . . . . 1 . . . . Recyclers Shooed 3 | . . . . . 2 1 . . . . Parts Field Recycled . | . . . . . . . . . . . Retrieved Matter . | . . . . . . . . . . . Parts Self-Destructed . | . . . . . . . . . . . Prevented . | . . . . . . . . . . . Kills | -11 -10 -10 -10 -9 -8 -8 -8 -8 -6 -6 ------- Run | Yrd Mat Min Exi Min Mat Sto Rec Scr Fac Was Combat Hostiles Destroyed 64 | . 13 5 . . 16 11 1 . 12 6 Guns 40 | . 6 3 . . 11 9 1 . 10 . Cannons 4 | . . 1 . . 3 . . . . . AOE 10 | . 7 1 . . 1 1 . . . . Classes Destroyed 15 | . 5 1 . . 4 1 . . 3 1 Worker 7 | . . . . . 2 4 . . 1 . Builder 5 | . 4 . . . 1 . . . . . Hauler 1 | . . . . . . 1 . . . . Recycler 3 | . . . . . 1 1 1 . . . Operator 1 | . 1 . . . . . . . . . Watcher 7 | . 3 . . . 1 2 . . 1 . Swarmer 13 | . 3 3 . . 5 . . . 2 . Grunt 26 | . 10 1 . . 6 9 . . . . Sentry 9 | . . . . . 5 1 1 . 2 . Demolisher 1 | . . 1 . . . . . . . . Specialist 2 | . . . . . . . . . 2 . Hunter 4 | . . . . . 1 1 . . 2 . Programmer 3 | . . . . . . . . . 3 . Behemoth 1 | . . . . . . . . . 1 . Compactor 6 | . . . . . . . . . . 6 Best Kill Streak 7 | . 4 3 . . 3 7 1 . 5 2 Combat Bots Only 5 | . 3 3 . . 3 2 1 . 5 3 Max Kills in Single Turn 4 | . 2 2 . . 2 4 1 . 1 1 Gunslinging . | . . . . . . . . . . . Exploded 1 | . 1 1 . . 1 1 . . . . Melee . | . . . . . . . . . . . Uniques/NPCs Destroyed . | . . . . . . . . . . . Combat | -11 -10 -10 -10 -9 -8 -8 -8 -8 -6 -6 -------- Run | Yrd Mat Min Exi Min Mat Sto Rec Scr Fac Was Hostile Shots Fired 441 | . 53 3 . 3 76 56 2 . 242 6 Missed 155 | . 20 . . . 22 10 . . 102 1 Damage Taken 3791 | . 385 69 . 65 787 831 28 . 1398 228 Core 553 | . 66 27 . . 85 80 . . 113 182 Absorbed by Shields . | . . . . . . . . . . . Redirected to Shielding 48 | . . . . . 48 . . . . . Regen/Repaired (Parts) 273 | . . . . . . . . . 273 . Core Remaining (%) 77 | 100 . . . 62 . . . 70 . . Volleys Fired 183 | . 50 5 . 2 39 34 2 . 44 7 Largest 3 | . 2 2 . 2 3 3 3 . 3 1 Hottest 250 | . 121 121 . 98 203 207 193 . 199 250 Shots Fired 419 | . 78 8 . 3 92 97 7 . 127 7 Gun 373 | . 65 4 . 2 74 94 7 . 127 . Cannon 21 | . . 2 . . 12 . . . . 7 Launcher 25 | . 13 2 . 1 6 3 . . . . Special . | . . . . . . . . . . . Kinetic 26 | . 15 . . . 11 . . . . . Thermal 368 | . 50 6 . 2 75 94 7 . 127 7 Explosive 3 | . . . . . . 3 . . . . Electromagnetic 22 | . 13 2 . 1 6 . . . . . Robot Hit Streak 15 | . 6 4 . 2 11 7 3 . 15 11 Robot Miss Streak 13 | . 6 2 . 7 13 4 1 . 4 2 Penetration Max . | . . . . . . . . . . . Secondary Targets 6 | . 1 . . . 1 1 . . 3 . Max Gunslinging Chain 1 | . 1 . . . 1 1 . . 1 . Shots Hit Robots 270 | . 41 5 . 2 66 58 5 . 86 7 Core Hits 217 | . 42 6 . 6 75 45 1 . 32 10 Critical Kills . | . . . . . . . . . . . Critical Parts Destroyed . | . . . . . . . . . . . Critical Strikes 10 | . 2 . . . 1 1 1 . 5 . Burn 10 | . 2 . . . 1 1 1 . 5 . Melee Attacks . | . . . . . . . . . . . Impact . | . . . . . . . . . . . Slashing . | . . . . . . . . . . . Piercing . | . . . . . . . . . . . Sneak Attacks . | . . . . . . . . . . . Combat Hostiles . | . . . . . . . . . . . Follow-up Attacks . | . . . . . . . . . . . Damage Inflicted 7301 | . 1020 219 . 100 1508 1592 108 . 1922 832 Guns 4477 | . 471 32 . 24 940 996 93 . 1921 . Cannons 503 | . . 50 . . 148 . . . . 305 Explosions 2282 | . 549 136 . 76 398 596 . . . 527 Melee . | . . . . . . . . . . . Ramming 39 | . . 1 . . 22 . 15 . 1 . Kinetic 237 | . 89 . . . 148 . . . . . Thermal 5560 | . 486 198 . 24 1010 996 93 . 1921 832 Explosive 596 | . . . . . . 596 . . . . Electromagnetic 869 | . 445 20 . 76 328 . . . . . Impact . | . . . . . . . . . . . Slashing . | . . . . . . . . . . . Piercing . | . . . . . . . . . . . Highest Corruption 100 | . . . . . 1 3 3 1 2 100 Average Corruption 65 | . . . . . 1 1 3 1 1 70 Corruption Purged 3 | . . . . . 1 . . . 2 . Corruption Blocked . | . . . . . . . . . . . Effects 1302 | . . . . . 1 7 15 . 5 1274 Message Errors 443 | . . . . . . 2 6 . 2 433 Matter Fused 51 | . . . . . . 1 2 . 1 47 Heat Flow Errors 199 | . . . . . . 1 2 . . 196 Energy Discharges 219 | . . . . . . 1 3 . 1 214 Parts Rejected 2 | . . . . . . 1 1 . . . Parts Fused 1 | . . . . . . . . . . 1 Data Loss (minor) 222 | . . . . . . 1 . . . 221 Data Loss (major) 90 | . . . . . . . . . . 90 Misfires 2 | . . . . . . . 1 . 1 . Alerts 63 | . . . . . 1 . . . . 62 Misdirections 10 | . . . . . . . . . . 10 Overload Shots . | . . . . . . . . . . . Overflow Damage 92 | . 15 36 . . 19 22 . . . . Projectiles . | . . . . . . . . . . . Explosions 92 | . 15 36 . . 19 22 . . . . Melee . | . . . . . . . . . . . Knockbacks 3 | . . . . . 3 . . . . . Impact . | . . . . . . . . . . . Kinetic 3 | . . . . . 3 . . . . . Secondary . | . . . . . . . . . . . Self-Inflicted Damage 98 | . . 46 . 14 36 . . . . 2 Shots 7 | . . 3 . 1 1 . . . . 2 Rammed 7 | . . . . . 5 . . . 2 . Targets Rammed 9 | . . 1 . . 5 . 1 . 2 . Kicked 1 | . . 1 . . . . . . . . Crushed 1 | . . . . . . . 1 . . . Highest Temperature 353 | . 126 36 . 32 299 353 133 . 90 313 Average Temperature 97 | . 43 13 . 20 65 123 64 . 30 103 Received Heat Transfer 1137 | . 192 . . 27 315 378 9 . 216 . Effects 5 | . . . . . . 2 . . . 3 Shutdowns 1 | . . . . . . 1 . . . . Energy Bleed 3 | . . . . . . . . . . 3 Interference 1 | . . . . . . 1 . . . . Siege Activations . | . . . . . . . . . . . Robots Corrupted 1 | . . . . . 1 . . . . . Combat Hostiles 1 | . . . . . 1 . . . . . Parts Fried 1 | . 1 . . . . . . . . . Impact Corruptions . | . . . . . . . . . . . Robots Melted 9 | . . . . . . 1 . . 2 6 Combat Hostiles 9 | . . . . . . 1 . . 2 6 Parts Melted 47 | . 1 1 . . 7 2 . . 17 19 Heat Transferred 14177 | . 1162 281 . 30 1778 1878 259 . 4229 4560 Parts Sabotaged . | . . . . . . . . . . . Parts Stolen . | . . . . . . . . . . . Parts Stripped . | . . . . . . . . . . . Power Chain Reactions 6 | . 4 1 . . 1 . . . . . Alert | -11 -10 -10 -10 -9 -8 -8 -8 -8 -6 -6 ------- Run | Yrd Mat Min Exi Min Mat Sto Rec Scr Fac Was Peak Influence 335 | . 274 213 . 58 335 200 125 . 162 9 Initial 113 | . . . . . 22 113 33 . . 9 Average 15 | . 48 87 . 18 212 115 33 . 62 . Maximum Alert Level 1 | . 1 1 . . 1 1 . . . . Low Security (%) 97 | . 98 98 . 100 37 81 100 . 100 100 Level 1 2 | . 1 1 . . 62 18 . . . . Level 2 . | . . . . . . . . . . . Level 3 . | . . . . . . . . . . . Level 4 . | . . . . . . . . . . . Level 5 . | . . . . . . . . . . . High Security . | . . . . . . . . . . . Max Security . | . . . . . . . . . . . Squads Dispatched 24 | . 1 1 . . 6 5 . . 11 . Investigation 6 | . . 1 . . 2 1 . . 2 . Extermination 3 | . . . . . . . . . 3 . Reinforcement 9 | . 1 . . . 3 2 . . 3 . Assault 2 | . . . . . . 2 . . . . Garrison 4 | . . . . . 1 . . . 3 . Intercept . | . . . . . . . . . . . Searches Triggered . | . . . . . . . . . . . Construction Impeded 3 | . . . . . 1 1 . . 1 . Haulers Reinforced . | . . . . . . . . . . . Active Scanning Responses . | . . . . . . . . . . . Cargo Convoy Interrupts . | . . . . . . . . . . . Stealth | -11 -10 -10 -10 -9 -8 -8 -8 -8 -6 -6 --------- Run | Yrd Mat Min Exi Min Mat Sto Rec Scr Fac Was Distress Signals 4 | . 1 . . . 2 . . . 1 . Communications Jammed . | . . . . . . . . . . . Distress Signals . | . . . . . . . . . . . Times Spotted 104 | . 24 5 . 2 29 14 1 . 20 9 Peak Tracking Total 6 | . 5 3 . 2 6 3 1 . 3 6 Tactical Retreats 7 | . 2 . . . 3 . . . . 2 Traps | -11 -10 -10 -10 -9 -8 -8 -8 -8 -6 -6 ------- Run | Yrd Mat Min Exi Min Mat Sto Rec Scr Fac Was Traps Triggered 10 | . 2 . . . 2 3 . . 3 . Indirectly 1 | . 1 . . . . . . . . . Trap Hack Attempts . | . . . . . . . . . . . Triggered . | . . . . . . . . . . . Disarmed . | . . . . . . . . . . . Reprogrammed . | . . . . . . . . . . . Reused . | . . . . . . . . . . . Traps Extracted . | . . . . . . . . . . . Installed . | . . . . . . . . . . . Triggered . | . . . . . . . . . . . Machines | -11 -10 -10 -10 -9 -8 -8 -8 -8 -6 -6 ---------- Run | Yrd Mat Min Exi Min Mat Sto Rec Scr Fac Was Machines Disabled 18 | . 6 6 . . 2 2 . . 2 . Max in Single Turn 6 | . 1 6 . . 2 1 . . . . Garrison Access 1 | . . . . . . 1 . . . . Machines Repaired . | . . . . . . . . . . . Machines Dismantled . | . . . . . . . . . . . Machines Sabotaged . | . . . . . . . . . . . Overloaded Fab Kills . | . . . . . . . . . . . Hacking | -11 -10 -10 -10 -9 -8 -8 -8 -8 -6 -6 --------- Run | Yrd Mat Min Exi Min Mat Sto Rec Scr Fac Was Machines Accessed 34 | . 7 1 1 . 6 7 6 . 6 . Terminals 28 | . 7 . . . 6 6 6 . 3 . Fabricators 1 | . . . . . . . . . 1 . Repair Stations 1 | . . . . . . . . . 1 . Recycling Units . | . . . . . . . . . . . Scanalyzers . | . . . . . . . . . . . Garrison Access 2 | . . . . . . 1 . . 1 . Total Hacks 102 | . 30 1 1 . 20 18 20 . 12 . Successful 48 | . 16 1 1 . 10 7 7 . 6 . Failed 53 | . 14 . . . 10 11 12 . 6 . Catastrophic 14 | . 3 . . . 2 3 4 . 2 . Database Lockouts 1 | . . . . . . . 1 . . . Manual 52 | . 13 . 1 . 13 7 13 . 5 . Terminals 94 | . 30 . . . 20 17 20 . 7 . Fabricators 2 | . . . . . . . . . 2 . Repair Stations 2 | . . . . . . . . . 2 . Recycling Units . | . . . . . . . . . . . Scanalyzers . | . . . . . . . . . . . Garrison Access 2 | . . . . . . 1 . . 1 . Terminal Hacks 24 | . 8 1 1 . 5 4 5 . . . Record 1 | . . . . . . 1 . . . . Part Schematic 1 | . . . . . . . 1 . . . Robot Schematic 1 | . . . . . . . 1 . . . Robot Analysis 1 | . . . . . . 1 . . . . Prototype ID Bank 6 | . 3 . . . 1 . 2 . . . Open Door 2 | . . 1 . . . 1 . . . . Branch Access Points 1 | . . . . . 1 . . . . . Emergency Access Points 1 | . . . . . 1 . . . . . Alert Level 1 | . . . . . 1 . . . . . Unreport Threat 3 | . 2 . . . . 1 . . . . Locate Traps 4 | . 3 . . . 1 . . . . . Maintenance Status 1 | . . . . . . . 1 . . . Derelict Proto ID Bank 1 | . . . 1 . . . . . . . Fabricator Hacks 2 | . . . . . . . . . 2 . Load Schematic 1 | . . . . . . . . . 1 . Build 1 | . . . . . . . . . 1 . Repair Station Hacks 2 | . . . . . . . . . 2 . Scan Component 1 | . . . . . . . . . 1 . Repair 1 | . . . . . . . . . 1 . Recycling Unit Hacks . | . . . . . . . . . . . Scanalyzer . | . . . . . . . . . . . Garrison Access Hacks 1 | . . . . . . 1 . . . . Seal Access 1 | . . . . . . 1 . . . . Unauthorized Hacks 19 | . 8 . . . 5 2 2 . 2 . Terminals 19 | . 8 . . . 5 2 2 . 2 . Botnet 16 | . 5 . . . 5 2 2 . 2 . Disrupt 2 | . 2 . . . . . . . . . Operators 1 | . 1 . . . . . . . . . Fabricators . | . . . . . . . . . . . Repair Stations . | . . . . . . . . . . . Recycling Units . | . . . . . . . . . . . Scanalyzers . | . . . . . . . . . . . Garrison Access . | . . . . . . . . . . . Data Cores Recovered 1 | . 1 . . . . . . . . . Used . | . . . . . . . . . . . Hacking Detections 28 | . 7 . . . 6 6 4 . 5 . Full Trace Events 2 | . . . . . . . 1 . 1 . Feedback Events . | . . . . . . . . . . . Feedback Blocked . | . . . . . . . . . . . Robot Schematics Acquired 1 | . . . . . . . 1 . . . Robots Built 2 | . . . . . . . . . 2 . Authchips 1 | . . . . . . . . . 1 . Time 99 | . . . . . . . . . 99 . Total Robot Build Rating 4 | . . . . . . . . . 4 . Part Schematics Acquired 1 | . . . . . . . 1 . . . Parts Built . | . . . . . . . . . . . Authchips . | . . . . . . . . . . . Time . | . . . . . . . . . . . Total Part Build Rating . | . . . . . . . . . . . Parts Repaired 1 | . . . . . . . . . 1 . Time 38 | . . . . . . . . . 38 . Parts Recycled . | . . . . . . . . . . . Recycled Matter . | . . . . . . . . . . . Retrieved Matter . | . . . . . . . . . . . Retrieved Components . | . . . . . . . . . . . Parts Scanalyzed . | . . . . . . . . . . . Part Schematics Acquired . | . . . . . . . . . . . Parts Damaged . | . . . . . . . . . . . Bothacking | -11 -10 -10 -10 -9 -8 -8 -8 -8 -6 -6 ------------ Run | Yrd Mat Min Exi Min Mat Sto Rec Scr Fac Was Used RIF Installer . | . . . . . . . . . . . Robots Hacked . | . . . . . . . . . . . Non-combat . | . . . . . . . . . . . Combat . | . . . . . . . . . . . Robot Hacks Applied . | . . . . . . . . . . . Relay Couplers Released . | . . . . . . . . . . . Fabnet Peak Effective % . | . . . . . . . . . . . Robots Rewired . | . . . . . . . . . . . Allies Hacked . | . . . . . . . . . . . Hacks Repelled . | . . . . . . . . . . . Allies | -11 -10 -10 -10 -9 -8 -8 -8 -8 -6 -6 -------- Run | Yrd Mat Min Exi Min Mat Sto Rec Scr Fac Was Total Allies 7 | . . 3 . . . 2 . . 2 . Largest Group 3 | . . 3 3 3 3 2 2 2 2 . Highest-Rated Group 62 | . . 40 40 40 40 62 62 62 62 . Highest-Rated Ally 31 | . . 16 16 16 16 31 31 31 31 . Total Orders . | . . . . . . . . . . . Ally Attacks 50 | . . . . 10 8 . 4 . 28 . Total Damage 748 | . . . . 116 108 . 63 . 461 . Kills 7 | . . . . 2 1 . 2 . 2 . Allies Corrupted . | . . . . . . . . . . . Allies Melted 1 | . . . . . . . . . 1 . Intel | -11 -10 -10 -10 -9 -8 -8 -8 -8 -6 -6 ------- Run | Yrd Mat Min Exi Min Mat Sto Rec Scr Fac Was Robot Analysis Total 1 | . . . . . . 1 . . . . Derelict Logs Recovered 1 | . . 1 . . . . . . . . Drone Launches . | . . . . . . . . . . . Drone Recoveries . | . . . . . . . . . . . Exploration | -11 -10 -10 -10 -9 -8 -8 -8 -8 -6 -6 ------------- Run | Yrd Mat Min Exi Min Mat Sto Rec Scr Fac Was Turns Passed 41329 | . 1803 821 370 352 982 1002 897 1534 1453 32115 Spaces Moved 7658 | 1 795 554 288 216 438 374 544 939 764 2745 Core 2724 | . . . . . . . . . . 2724 Treads 3339 | . . . 43 216 438 374 544 939 764 21 Legs 1595 | 1 795 554 245 . . . . . . . Wheels . | . . . . . . . . . . . Hover . | . . . . . . . . . . . Flight . | . . . . . . . . . . . Fastest Speed 50 | 120 120 120 120 160 160 163 163 158 158 50 Average Speed 304 | 120 120 121 125 160 161 163 163 162 158 585 Slowest Speed 750 | 120 190 190 160 160 240 163 163 163 245 750 Overloaded Moves . | . . . . . . . . . . . Propulsion Burnouts . | . . . . . . . . . . . Robots Hopped . | . . . . . . . . . . . Cave-ins Triggered . | . . . . . . . . . . . Exploration Rate (%) 61 | 1 99 99 69 37 37 69 99 57 26 88 Regions Visited 10 Branch Regions 6 Pre-discovered Areas 2 | . . 1 . 1 . . . . . . Known Exits Taken 1 | . . . . . 1 . . . . . Unknown Exits Taken 8 | 1 1 1 1 1 . 1 1 1 . . Scrap Searched 7 | . . 1 . 2 . . . 4 . . Spaces Dug . | . . . . . . . . . . . Terrain Destroyed 34 | . 4 14 . . 4 12 . . . . Melee . | . . . . . . . . . . . Projectile . | . . . . . . . . . . . AOE 34 | . 4 14 . . 4 12 . . . . Terrain Rammed . | . . . . . . . . . . . Walls Destroyed . | . . . . . . . . . . . Machines Disabled . | . . . . . . . . . . . Actions | -11 -10 -10 -10 -9 -8 -8 -8 -8 -6 -6 --------- Run | Yrd Mat Min Exi Min Mat Sto Rec Scr Fac Was Total 25308 | . 1564 691 297 220 630 692 551 953 909 18801 Wait 17277 | . 683 118 . 2 109 264 . . 69 16032 Move 7649 | . 794 553 287 215 437 373 543 938 764 2745 Hop . | . . . . . . . . . . . Pick Up 42 | . 8 2 3 1 7 5 2 5 9 . Fast Attach 30 | . 7 . . . 13 2 1 . 6 1 Attach 23 | . . . 2 . 1 6 . . 6 8 Detach 21 | . 2 . . . 6 2 . . 3 8 Swap 30 | . 9 7 1 . 5 3 . 3 2 . Drop 44 | . 11 5 4 . 8 3 2 7 4 . Fire 183 | . 50 5 . 2 39 34 2 . 44 7 Melee . | . . . . . . . . . . . Ram . | . . . . . . . . . . . Kick 1 | . . 1 . . . . . . . . Crush 8 | . . . . . 5 . 1 . 2 . Escape Stasis . | . . . . . . . . . . . Rewire . | . . . . . . . . . . . Trap . | . . . . . . . . . . . Miscellaneous . | . . . . . . . . . . . Route ------- -11/Scrapyard -10/Materials (discovered 4 exits: [*Mat x3] / *Min) -10/Mines (discovered 3 exits: [*Mat x2] / *Exi) -10/Exiles (discovered 2 exits: [*Min x2]) -9/Mines (discovered 2 exits: *Mat x2) -8/Materials -8/Storage -8/Recycling (discovered 2 exits: *Fac / *Scr) -8/Scraptown -6/Factory -6/Waste (discovered 1 exit: [*Fac]) History --------- Turn | Location | Event 1 | -11/Scrapyard | Discovered new exit (range 0) 1 | -11/Scrapyard | Entered Materials 222 | -10/Materials | Discovered new exit (range 5) 316 | -10/Materials | Build established: Mutant 503 | -10/Materials | Discovered new exit (range 6) 631 | -10/Materials | Discovered new exit (range 16) 669 | -10/Materials | Discovered new exit (range 15) 1804 | -10/Materials | Entered Mines 1945 | -10/Mines | Assembled infested the area 2147 | -10/Mines | Met a Derelict shopkeep closing up shop 2263 | -10/Mines | Assisted by bots powering up and referring to "LRC-V3" 2283 | -10/Mines | Discovered new exit (range 11) 2503 | -10/Mines | Discovered new exit (range 7) 2537 | -10/Mines | Deemed a non-threat by the Exiles lab entrance 2611 | -10/Mines | Learned location of Zion (-7) 2617 | -10/Mines | Discovered new exit (range 8) 2625 | -10/Mines | Entered Exiles 2625 | -10/Exiles | Accompanied by 3 allies 2641 | -10/Exiles | Discovered new exit (range 15) 2655 | -10/Exiles | Met 8R-AWN 2675 | -10/Exiles | Met EX-HEX 2713 | -10/Exiles | Met EX-BIN 2729 | -10/Exiles | Aligned with FarCom system 2730 | -10/Exiles | Given EX-Vault access code 2763 | -10/Exiles | Opened EX-Vault 2770 | -10/Exiles | Found Firepult 2795 | -10/Exiles | Warned to stay clear of 0b10 Research branches 2831 | -10/Exiles | Met EX-DEC 2974 | -10/Exiles | Discovered new exit (range 14) 2995 | -10/Exiles | Left Exiles lab with Firepult 2995 | -10/Exiles | Entered Mines 2995 | -9/Mines | Accompanied by 3 allies 3061 | -9/Mines | Discovered new exit (range 15) 3076 | -9/Mines | Learned location of Storage (-8) 3242 | -9/Mines | Discovered new exit (range 9) 3280 | -9/Mines | Received a Rocket Launcher from a helpful Derelict 3347 | -9/Mines | Entered Materials 3347 | -8/Materials | Accompanied by 3 allies 3347 | -8/Materials | Evolved 4 slots: Propulsion x1, Utility x2, Weapon x1 3670 | -8/Materials | Build established: Skirmisher 4188 | -8/Materials | Identified exit to Storage 4303 | -8/Materials | Garrison activated, responded to threat 4329 | -8/Materials | Entered Storage 5313 | -8/Storage | Met a pair of Derelict thieves 5325 | -8/Storage | Used back door to open Recycling access 5325 | -8/Storage | Discovered new exit (range 5) 5331 | -8/Storage | Entered Recycling 5331 | -8/Recycling | Accompanied by 2 allies 5987 | -8/Recycling | Discovered new exit (range 6) 6191 | -8/Recycling | Scanned before Scraplab entrance 6214 | -8/Recycling | Entered Scraplab 6227 | -8/Recycling | Discovered new exit (range 2) 6228 | -8/Recycling | Entered Scraptown 6228 | -8/Scraptown | Accompanied by 2 allies 6228 | -8/Scraptown | System corruption cleaned by C-Scrubber 6452 | -8/Scraptown | Heard Great Nut preacher, LISTEN AND RECITE! 6518 | -8/Scraptown | Build established: Gunner 6522 | -8/Scraptown | Discovered new exit (range 11) 6687 | -8/Scraptown | Visited SPCMW 6729 | -8/Scraptown | Visited Assassins FH 6846 | -8/Scraptown | Visited Awakened 7102 | -8/Scraptown | Visited Comm Corps 7176 | -8/Scraptown | Turned away by UFD registrar 7189 | -8/Scraptown | Visited Symbiants 7211 | -8/Scraptown | Visited Cave Peace 7275 | -8/Scraptown | Visited IN-MT5's Study 7762 | -8/Scraptown | Entered Factory 7762 | -6/Factory | Accompanied by 2 allies 7762 | -6/Factory | Evolved 4 slots: Utility x4 7855 | -6/Factory | Repaired Arm. Treads 8063 | -6/Factory | Build established: Skirmisher 8169 | -6/Factory | Spotted B-75 Beast 8190 | -6/Factory | Destroyed B-75 Beast 9133 | -6/Factory | Lost 4 parts (2n2u) 9160 | -6/Factory | Fabricated Y-45 Defender? 9215 | -6/Factory | Sucked down chute 9215 | -6/Factory | Entered Waste 9230 | -6/Waste | EMP discharged 9230 | -6/Waste | System corruption reached 10% 9231 | -6/Waste | Spotted C-40 Crusher 9233 | -6/Waste | Spotted C-40 Crusher 9235 | -6/Waste | Spotted C-40 Crusher 9238 | -6/Waste | Spotted C-40 Crusher 9250 | -6/Waste | Crushed by Compactor (1 part destroyed, 1 dropped) 9250 | -6/Waste | Released all parts (9) 9251 | -6/Waste | Spotted C-40 Crusher 9253 | -6/Waste | Spotted C-40 Crusher 9330 | -6/Waste | EMP discharged 9426 | -6/Waste | Discovered new exit (range 13) 9430 | -6/Waste | EMP discharged 9530 | -6/Waste | EMP discharged 9530 | -6/Waste | System corruption reached 30% 9552 | -6/Waste | Build established: Mutant 9630 | -6/Waste | EMP discharged 9634 | -6/Waste | Destroyed C-40 Crusher 9682 | -6/Waste | Destroyed C-40 Crusher 9720 | -6/Waste | Destroyed C-40 Crusher 9730 | -6/Waste | EMP discharged 9745 | -6/Waste | Destroyed C-40 Crusher 9765 | -6/Waste | Destroyed C-40 Crusher 9786 | -6/Waste | Destroyed C-40 Crusher 9793 | -6/Waste | Found Damper Plating 9830 | -6/Waste | EMP discharged 9930 | -6/Waste | EMP discharged 10030 | -6/Waste | EMP discharged 10130 | -6/Waste | EMP discharged 10230 | -6/Waste | EMP discharged 10330 | -6/Waste | EMP discharged 10430 | -6/Waste | EMP discharged 10530 | -6/Waste | EMP discharged 10630 | -6/Waste | EMP discharged 10730 | -6/Waste | EMP discharged 10830 | -6/Waste | EMP discharged 10930 | -6/Waste | EMP discharged 11030 | -6/Waste | EMP discharged 11130 | -6/Waste | EMP discharged 11230 | -6/Waste | EMP discharged 11330 | -6/Waste | EMP discharged 11430 | -6/Waste | EMP discharged 11530 | -6/Waste | EMP discharged 11630 | -6/Waste | EMP discharged 11730 | -6/Waste | EMP discharged 11830 | -6/Waste | EMP discharged 11930 | -6/Waste | EMP discharged 12030 | -6/Waste | EMP discharged 12130 | -6/Waste | EMP discharged 12230 | -6/Waste | EMP discharged 12330 | -6/Waste | EMP discharged 12430 | -6/Waste | EMP discharged 12530 | -6/Waste | EMP discharged 12630 | -6/Waste | EMP discharged 12730 | -6/Waste | EMP discharged 12830 | -6/Waste | EMP discharged 12930 | -6/Waste | EMP discharged 13030 | -6/Waste | EMP discharged 13130 | -6/Waste | EMP discharged 13230 | -6/Waste | EMP discharged 13330 | -6/Waste | EMP discharged 13430 | -6/Waste | EMP discharged 13530 | -6/Waste | EMP discharged 13630 | -6/Waste | EMP discharged 13730 | -6/Waste | EMP discharged 13830 | -6/Waste | EMP discharged 13930 | -6/Waste | EMP discharged 14030 | -6/Waste | EMP discharged 14130 | -6/Waste | EMP discharged 14230 | -6/Waste | EMP discharged 14330 | -6/Waste | EMP discharged 14430 | -6/Waste | EMP discharged 14530 | -6/Waste | EMP discharged 14630 | -6/Waste | EMP discharged 14730 | -6/Waste | EMP discharged 14830 | -6/Waste | EMP discharged 14930 | -6/Waste | EMP discharged 15030 | -6/Waste | EMP discharged 15130 | -6/Waste | EMP discharged 15230 | -6/Waste | EMP discharged 15330 | -6/Waste | EMP discharged 15430 | -6/Waste | EMP discharged 15530 | -6/Waste | EMP discharged 15630 | -6/Waste | EMP discharged 15730 | -6/Waste | EMP discharged 15830 | -6/Waste | EMP discharged 15930 | -6/Waste | EMP discharged 16030 | -6/Waste | EMP discharged 16130 | -6/Waste | EMP discharged 16230 | -6/Waste | EMP discharged 16330 | -6/Waste | EMP discharged 16430 | -6/Waste | EMP discharged 16530 | -6/Waste | EMP discharged 16630 | -6/Waste | EMP discharged 16730 | -6/Waste | EMP discharged 16830 | -6/Waste | EMP discharged 16930 | -6/Waste | EMP discharged 17030 | -6/Waste | EMP discharged 17130 | -6/Waste | EMP discharged 17230 | -6/Waste | EMP discharged 17330 | -6/Waste | EMP discharged 17430 | -6/Waste | EMP discharged 17530 | -6/Waste | EMP discharged 17630 | -6/Waste | EMP discharged 17730 | -6/Waste | EMP discharged 17830 | -6/Waste | EMP discharged 17930 | -6/Waste | EMP discharged 18030 | -6/Waste | EMP discharged 18130 | -6/Waste | EMP discharged 18230 | -6/Waste | EMP discharged 18330 | -6/Waste | EMP discharged 18430 | -6/Waste | EMP discharged 18530 | -6/Waste | EMP discharged 18630 | -6/Waste | EMP discharged 18730 | -6/Waste | EMP discharged 18830 | -6/Waste | EMP discharged 18930 | -6/Waste | EMP discharged 19030 | -6/Waste | EMP discharged 19130 | -6/Waste | EMP discharged 19230 | -6/Waste | EMP discharged 19330 | -6/Waste | EMP discharged 19430 | -6/Waste | EMP discharged 19530 | -6/Waste | EMP discharged 19630 | -6/Waste | EMP discharged 19730 | -6/Waste | EMP discharged 19830 | -6/Waste | EMP discharged 19930 | -6/Waste | EMP discharged 20030 | -6/Waste | EMP discharged 20130 | -6/Waste | EMP discharged 20230 | -6/Waste | EMP discharged 20330 | -6/Waste | EMP discharged 20430 | -6/Waste | EMP discharged 20530 | -6/Waste | EMP discharged 20630 | -6/Waste | EMP discharged 20730 | -6/Waste | EMP discharged 20830 | -6/Waste | EMP discharged 20930 | -6/Waste | EMP discharged 21030 | -6/Waste | EMP discharged 21130 | -6/Waste | EMP discharged 21230 | -6/Waste | EMP discharged 21330 | -6/Waste | EMP discharged 21430 | -6/Waste | EMP discharged 21530 | -6/Waste | EMP discharged 21630 | -6/Waste | EMP discharged 21730 | -6/Waste | EMP discharged 21830 | -6/Waste | EMP discharged 21930 | -6/Waste | EMP discharged 22030 | -6/Waste | EMP discharged 22130 | -6/Waste | EMP discharged 22230 | -6/Waste | EMP discharged 22330 | -6/Waste | EMP discharged 22430 | -6/Waste | EMP discharged 22530 | -6/Waste | EMP discharged 22630 | -6/Waste | EMP discharged 22730 | -6/Waste | EMP discharged 22830 | -6/Waste | EMP discharged 22930 | -6/Waste | EMP discharged 23030 | -6/Waste | EMP discharged 23130 | -6/Waste | EMP discharged 23230 | -6/Waste | EMP discharged 23330 | -6/Waste | EMP discharged 23430 | -6/Waste | EMP discharged 23530 | -6/Waste | EMP discharged 23630 | -6/Waste | EMP discharged 23730 | -6/Waste | EMP discharged 23830 | -6/Waste | EMP discharged 23930 | -6/Waste | EMP discharged 24030 | -6/Waste | EMP discharged 24130 | -6/Waste | EMP discharged 24230 | -6/Waste | EMP discharged 24330 | -6/Waste | EMP discharged 24430 | -6/Waste | EMP discharged 24530 | -6/Waste | EMP discharged 24630 | -6/Waste | EMP discharged 24730 | -6/Waste | EMP discharged 24830 | -6/Waste | EMP discharged 24930 | -6/Waste | EMP discharged 25030 | -6/Waste | EMP discharged 25130 | -6/Waste | EMP discharged 25230 | -6/Waste | EMP discharged 25330 | -6/Waste | EMP discharged 25430 | -6/Waste | EMP discharged 25530 | -6/Waste | EMP discharged 25630 | -6/Waste | EMP discharged 25730 | -6/Waste | EMP discharged 25830 | -6/Waste | EMP discharged 25930 | -6/Waste | EMP discharged 26030 | -6/Waste | EMP discharged 26130 | -6/Waste | EMP discharged 26230 | -6/Waste | EMP discharged 26330 | -6/Waste | EMP discharged 26430 | -6/Waste | EMP discharged 26530 | -6/Waste | EMP discharged 26630 | -6/Waste | EMP discharged 26730 | -6/Waste | EMP discharged 26830 | -6/Waste | EMP discharged 26930 | -6/Waste | EMP discharged 27030 | -6/Waste | EMP discharged 27130 | -6/Waste | EMP discharged 27230 | -6/Waste | EMP discharged 27330 | -6/Waste | EMP discharged 27430 | -6/Waste | EMP discharged 27530 | -6/Waste | EMP discharged 27630 | -6/Waste | EMP discharged 27730 | -6/Waste | EMP discharged 27830 | -6/Waste | EMP discharged 27930 | -6/Waste | EMP discharged 28030 | -6/Waste | EMP discharged 28130 | -6/Waste | EMP discharged 28230 | -6/Waste | EMP discharged 28330 | -6/Waste | EMP discharged 28430 | -6/Waste | EMP discharged 28530 | -6/Waste | EMP discharged 28630 | -6/Waste | EMP discharged 28730 | -6/Waste | EMP discharged 28830 | -6/Waste | EMP discharged 28930 | -6/Waste | EMP discharged 29030 | -6/Waste | EMP discharged 29130 | -6/Waste | EMP discharged 29230 | -6/Waste | EMP discharged 29330 | -6/Waste | EMP discharged 29430 | -6/Waste | EMP discharged 29530 | -6/Waste | EMP discharged 29630 | -6/Waste | EMP discharged 29730 | -6/Waste | EMP discharged 29830 | -6/Waste | EMP discharged 29930 | -6/Waste | EMP discharged 30030 | -6/Waste | EMP discharged 30130 | -6/Waste | EMP discharged 30230 | -6/Waste | EMP discharged 30330 | -6/Waste | EMP discharged 30430 | -6/Waste | EMP discharged 30530 | -6/Waste | EMP discharged 30630 | -6/Waste | EMP discharged 30730 | -6/Waste | EMP discharged 30830 | -6/Waste | EMP discharged 30930 | -6/Waste | EMP discharged 31030 | -6/Waste | EMP discharged 31130 | -6/Waste | EMP discharged 31230 | -6/Waste | EMP discharged 31330 | -6/Waste | EMP discharged 31430 | -6/Waste | EMP discharged 31530 | -6/Waste | EMP discharged 31630 | -6/Waste | EMP discharged 31730 | -6/Waste | EMP discharged 31830 | -6/Waste | EMP discharged 31930 | -6/Waste | EMP discharged 32030 | -6/Waste | EMP discharged 32130 | -6/Waste | EMP discharged 32230 | -6/Waste | EMP discharged 32330 | -6/Waste | EMP discharged 32430 | -6/Waste | EMP discharged 32530 | -6/Waste | EMP discharged 32630 | -6/Waste | EMP discharged 32730 | -6/Waste | EMP discharged 32830 | -6/Waste | EMP discharged 32930 | -6/Waste | EMP discharged 33030 | -6/Waste | EMP discharged 33130 | -6/Waste | EMP discharged 33230 | -6/Waste | EMP discharged 33330 | -6/Waste | EMP discharged 33430 | -6/Waste | EMP discharged 33530 | -6/Waste | EMP discharged 33630 | -6/Waste | EMP discharged 33730 | -6/Waste | EMP discharged 33830 | -6/Waste | EMP discharged 33930 | -6/Waste | EMP discharged 34030 | -6/Waste | EMP discharged 34130 | -6/Waste | EMP discharged 34230 | -6/Waste | EMP discharged 34330 | -6/Waste | EMP discharged 34430 | -6/Waste | EMP discharged 34530 | -6/Waste | EMP discharged 34630 | -6/Waste | EMP discharged 34730 | -6/Waste | EMP discharged 34830 | -6/Waste | EMP discharged 34930 | -6/Waste | EMP discharged 35030 | -6/Waste | EMP discharged 35130 | -6/Waste | EMP discharged 35230 | -6/Waste | EMP discharged 35330 | -6/Waste | EMP discharged 35430 | -6/Waste | EMP discharged 35530 | -6/Waste | EMP discharged 35630 | -6/Waste | EMP discharged 35730 | -6/Waste | EMP discharged 35830 | -6/Waste | EMP discharged 35930 | -6/Waste | EMP discharged 36030 | -6/Waste | EMP discharged 36130 | -6/Waste | EMP discharged 36230 | -6/Waste | EMP discharged 36330 | -6/Waste | EMP discharged 36430 | -6/Waste | EMP discharged 36530 | -6/Waste | EMP discharged 36630 | -6/Waste | EMP discharged 36730 | -6/Waste | EMP discharged 36830 | -6/Waste | EMP discharged 36930 | -6/Waste | EMP discharged 37030 | -6/Waste | EMP discharged 37130 | -6/Waste | EMP discharged 37230 | -6/Waste | EMP discharged 37330 | -6/Waste | EMP discharged 37430 | -6/Waste | EMP discharged 37530 | -6/Waste | EMP discharged 37630 | -6/Waste | EMP discharged 37730 | -6/Waste | EMP discharged 37830 | -6/Waste | EMP discharged 37930 | -6/Waste | EMP discharged 38030 | -6/Waste | EMP discharged 38130 | -6/Waste | EMP discharged 38230 | -6/Waste | EMP discharged 38330 | -6/Waste | EMP discharged 38430 | -6/Waste | EMP discharged 38530 | -6/Waste | EMP discharged 38630 | -6/Waste | EMP discharged 38730 | -6/Waste | EMP discharged 38830 | -6/Waste | EMP discharged 38930 | -6/Waste | EMP discharged 39030 | -6/Waste | EMP discharged 39130 | -6/Waste | EMP discharged 39230 | -6/Waste | EMP discharged 39330 | -6/Waste | EMP discharged 39430 | -6/Waste | EMP discharged 39530 | -6/Waste | EMP discharged 39630 | -6/Waste | EMP discharged 39730 | -6/Waste | EMP discharged 39830 | -6/Waste | EMP discharged 39930 | -6/Waste | EMP discharged 40030 | -6/Waste | EMP discharged 40130 | -6/Waste | EMP discharged 40230 | -6/Waste | EMP discharged 40330 | -6/Waste | EMP discharged 40430 | -6/Waste | EMP discharged 40530 | -6/Waste | EMP discharged 40630 | -6/Waste | EMP discharged 40730 | -6/Waste | EMP discharged 40830 | -6/Waste | EMP discharged 40930 | -6/Waste | EMP discharged 41030 | -6/Waste | EMP discharged 41130 | -6/Waste | EMP discharged 41230 | -6/Waste | EMP discharged 41330 | -6/Waste | EMP discharged 41331 | -6/Waste | System corrupted Last Messages --------------- 40948_ System corrupted: Energy discharge (-25). 40963_ System corrupted: Component data lost. 40979_ System corrupted: IFF burst signal emitted. 41020_ ALERT: Foreign system detected. Charging EMP. 41025_ System corrupted: Heat flow error (+280). 41057_ 6PPNYCMUXHVY MGXGFQ 41104_ System corrupted: Heat flow error (+150). 41119_ DSH|P<0KMGBC,I H EP>X8Y 41220_ ALERT: Foreign system detected. Charging EMP. 41228_ System corrupted: Component data lost. 41276_ PVXJ